[Event "Icelandic Team-ch Kvika Leagu 2023-24"]
[Site "Reykjavik"]
[Date "2024.03.02"]
[Round "9"]
[White "Bjornsson, Sverrir Orn"]
[Black "Thorarinsson, Pall A."]
[Result "1-0"]
[ECO "E31"]
[WhiteElo "2098"]
[BlackElo "2159"]
[Annotator "RC"]
[PlyCount "157"]
[EventDate "2024.02.29"]
[EventType "team-tourn"]
[EventCountry "ISL"]
[SourceTitle "playchess.com"]
[Source "ChessBase"]
[SourceQuality "1"]
[TimeControl "40/5400+30:900+30"]

1. d4 {[%emt 0:00:30]} Nf6 {[%emt 0:05:13]} 2. c4 {[%emt 0:00:35]} e6 {[%emt 0:00:07]} 3. Nc3 {[%emt 0:00:18]} Bb4 {[%emt 0:00:07]} 4. Bg5 {[%emt 0:00:42]} c5 {[%emt 0:00:08]} 5. d5 {[%emt 0:00:09]} h6 {[%emt 0:01:31]} 6. Bh4 {[%emt 0:00:15]} Bxc3+ {[%emt 0:01:03]} 7. bxc3 {[%emt 0:00:12]} d6 {[%emt 0:00:36]} 8. e3 {[%emt 0:01:47]} e5 {[%emt 0:03:49]} 9. Qc2 {[%emt 0:01:22]} Nbd7 {[%emt 0:05:21]} 10. Nf3 {[%emt 0:01:26]} Qe7 {[%emt 0:02:27]} 11. Nd2 {[%emt 0:01:53]} Kd8 {[%emt 0:10:26]} 12. Bd3 {[%emt 0:03:42]} Kc7 {[%emt 0:02:30]} 13. O-O {[%emt 0:04:18]} g5 {[%emt 0:04:15]} 14. Bg3 {[%emt 0:00:13]} Re8 {[%emt 0:00:40]} 15. f3 {[%emt 0:04:18]} Nf8 {[%emt 0:14:27]} 16. Rab1 {[%emt 0:07:22]} Bd7 {[%emt 0:07:38]} 17. Qb3 {[%emt 0:07:57]} b6 {[%emt 0:05:08]} 18. a4 {[%emt 0:04:13]} Reb8 {[%emt 0:02:32]} 19. Rb2 {[%emt 0:07:13]} a5 {[%emt 0:05:42]} 20. Qc2 {[%emt 0:02:16]} Nh5 {[%emt 0:04:36]} 21. Bf2 {[%emt 0:06:51]} Qe8 {[%emt 0:03:37]} 22. Ra1 {[%emt 0:02:09]} Ng7 {[%emt 0:01:42]} 23. g4 {[%emt 0:07:23]} h5 {[%emt 0:07:24]} 24. h3 {[%emt 0:02:07]} Qc8 {[%emt 0:01:25]} 25. e4 {[%emt 0:07:48]} Ng6 {[%emt 0:00:36]} 26. Be3 {[%emt 0:01:19]} hxg4 {[%emt 0:01:31]} 27. hxg4 {[%emt 0:00:26]} Bxg4 {[%emt 0:06:25]} 28. Bxg5 {[%emt 0:02:41]} Nh5 {[%emt 0:00:29]} 29. Kf2 {[%emt 0:04:06]} Nhf4 {[%emt 0:01:52]} 30. Bxf4 {[%emt 0:05:20]} Nxf4 {[%emt 0:00:02]} 31. Rh1 {[%emt 0:01:30]} Bd7 {[%emt 0:01:13]} 32. Nf1 {[%emt 0:03:00]} Qd8 {[%emt 0:00:59]} 33. Ne3 {[%emt 0:01:27]} Qf6 {[%emt 0:00:39]} 34. Bf1 {[%emt 0:01:09]} Rh8 {[%emt 0:00:28]} 35. Rxh8 {[%emt 0:01:53]} Qxh8 {[%emt 0:00:37]} 36. Ng2 {[%emt 0:07:25]} Nxg2 {[%emt 0:00:36]} 37. Bxg2 {[%emt 0:00:21]} Qh4+ {[%emt 0:00:27]} 38. Ke3 {[%emt 0:00:45]} Qe1+ {[%emt 0:00:22]} 39. Kd3 {[%emt 0:00:28]} f5 {[%emt 0:00:25]} 40. Qe2 {[%emt 0:00:00]} fxe4+ {[%emt 0:00:00]} 41. fxe4 {[%emt 0:03:22]} Qxe2+ {[%emt 0:04:41]} 42. Rxe2 {[%emt 0:00:38]} Rg8 {[%emt 0:00:56]} 43. Kc2 {[%emt 0:01:47]} Bxa4+ {[%emt 0:00:18]} 44. Kb2 {[%emt 0:00:07]} Bd7 {[%emt 0:02:49]} 45. Bf1 {[%emt 0:01:52]} Rf8 {[%emt 0:01:23]} 46. Bg2 {[%emt 0:00:27]} Rf4 {[%emt 0:01:11]} 47. Ka3 {[%emt 0:00:52]} Bg4 {[%emt 0:01:33]} 48. Re3 {[%emt 0:03:02]} Bd7 {[%emt 0:03:48]} 49. Bf3 {[%emt 0:03:31]} Rh4 {[%emt 0:00:32]} 50. Bg2 {[%emt 0:01:12]} Rh7 {[%emt 0:01:06]} 51. Rg3 {[%emt 0:00:37]} Rh4 {[%emt 0:01:00]} 52. Rg7 {[%emt 0:00:42]} Rg4 {[%emt 0:00:13]} 53. Rxd7+ {[%emt 0:00:20]} Kxd7 {[%emt 0:01:48]} 54. Bh3 {[%emt 0:00:06]} Ke7 {[%emt 0:00:04]} 55. Bxg4 {[%emt 0:00:11]} Kf6 {[%emt 0:00:01]} 56. Ka4 {[%emt 0:03:15]} Kg5 {[%emt 0:00:05]} 57. Bd7 {[%emt 0:01:30]} Kf4 {[%emt 0:00:06]} 58. Kb5 {[%emt 0:00:57]} Kxe4 {[%emt 0:00:05]} 59. Kxb6 {[%emt 0:00:06]} Kd3 {[%emt 0:00:12]} 60. Kc7 {[%emt 0:00:13]} e4 {[%emt 0:01:37]} 61. Kxd6 {[%emt 0:00:17]} e3 {[%emt 0:00:08]} 62. Bg4 {[%emt 0:00:10]} a4 {[%emt 0:00:58]} 63. Kxc5 {[%emt 0:00:44]} a3 {[%emt 0:00:17]} 64. d6 {[%emt 0:00:06]} a2 {[%emt 0:00:14]} 65. d7 {[%emt 0:00:07]} a1=Q {[%emt 0:00:09]} 66. d8=Q+ {[%emt 0:00:10]} Kc2 {[%emt 0:00:16]} 67. Bf5+ {[%emt 0:00:22]} Kc1 {[%emt 0:00:21]} 68. Qd3 {[%emt 0:01:07]} Qa7+ {[%emt 0:01:01]} 69. Kd5 {[%emt 0:00:23]} Qf7+ {[%emt 0:01:35]} 70. Kd4 {[%emt 0:00:26]} Qf6+ {[%emt 0:00:44]} 71. Kxe3 {[%emt 0:00:19]} Qg5+ {[%emt 0:00:17]} 72. Ke4 {[%emt 0:01:01]} Qh4+ {[%emt 0:00:21]} 73. Ke5 {[%emt 0:00:51]} Qe7+ {[%emt 0:00:40]} 74. Be6 {[%emt 0:01:22]} Qg5+ {[%emt 0:00:32]} 75. Qf5 {[%emt 0:00:11]} Qe3+ {[%emt 0:00:24]} 76. Kd5 {[%emt 0:00:36]} Qxc3 {[%emt 0:00:38]} 77. c5 {[%emt 0:00:35]} Qb3+ {[%emt 0:00:21]} 78. Kd6 {[%emt 0:00:08]} Qb8+ {[%emt 0:00:14]} 79. Ke7 {[%emt 0:00:23]} 1-0

[Event "Icelandic Team-ch Kvika Leagu 2023-24"]
[Site "Reykjavik"]
[Date "2024.03.02"]
[Round "9"]
[White "Ingvason, Johann"]
[Black "Kjartansson, David"]
[Result "1-0"]
[ECO "D25"]
[WhiteElo "2092"]
[BlackElo "2287"]
[Annotator "RC"]
[PlyCount "61"]
[EventDate "2024.02.29"]
[EventType "team-tourn"]
[EventCountry "ISL"]
[SourceTitle "playchess.com"]
[Source "ChessBase"]
[SourceQuality "1"]
[TimeControl "40/5400+30:900+30"]

1. d4 {[%emt 0:00:11]} d5 {[%emt 0:00:56]} 2. c4 {[%emt 0:00:05]} dxc4 {[%emt 0:00:06]} 3. Nf3 {[%emt 0:00:06]} Nf6 {[%emt 0:00:18]} 4. e3 {[%emt 0:00:05]} Bg4 {[%emt 0:00:25]} 5. Bxc4 {[%emt 0:00:50]} e6 {[%emt 0:00:09]} 6. O-O {[%emt 0:03:13]} Nbd7 {[%emt 0:00:12]} 7. Nbd2 {[%emt 0:11:04]} Bd6 {[%emt 0:00:11]} 8. h3 {[%emt 0:02:10]} Bh5 {[%emt 0:00:12]} 9. Qb3 {[%emt 0:01:08]} Rb8 {[%emt 0:00:27]} 10. e4 {[%emt 0:03:48]} b5 {[%emt 0:03:39]} 11. Bxe6 {[%emt 0:20:47]} fxe6 {[%emt 0:04:00]} 12. e5 {[%emt 0:00:22]} Nd5 {[%emt 0:01:19]} 13. exd6 {[%emt 0:00:07]} O-O {[%emt 0:01:14]} 14. dxc7 {[%emt 0:09:38]} Qxc7 {[%emt 0:00:07]} 15. Ng5 {[%emt 0:00:44]} Qc6 {[%emt 0:02:42]} 16. Re1 {[%emt 0:05:30]} Rbe8 {[%emt 0:02:06]} 17. Nde4 {[%emt 0:00:45]} h6 {[%emt 0:00:34]} 18. Ng3 {[%emt 0:00:33]} Bg6 {[%emt 0:02:21]} 19. Nf3 {[%emt 0:00:05]} Bc2 {[%emt 0:01:10]} 20. Qa3 {[%emt 0:02:02]} b4 {[%emt 0:02:16]} 21. Qa5 {[%emt 0:00:23]} Qb7 {[%emt 0:11:17]} 22. Bd2 {[%emt 0:06:32]} Bf5 {[%emt 0:09:51]} 23. Ne5 {[%emt 0:02:33]} N7f6 {[%emt 0:00:53]} 24. Rac1 {[%emt 0:00:46]} Rc8 {[%emt 0:00:29]} 25. Rc5 {[%emt 0:01:16]} a6 {[%emt 0:00:44]} 26. Rec1 {[%emt 0:02:05]} Rcd8 {[%emt 0:01:20]} 27. Rc6 {[%emt 0:03:34]} b3 {[%emt 0:00:16]} 28. Qxa6 {[%emt 0:02:31]} Qb8 {[%emt 0:00:35]} 29. a4 {[%emt 0:03:17]} Bc2 {[%emt 0:00:06]} 30. Qc4 {[%emt 0:02:48]} Rc8 {[%emt 0:02:12]} 31. a5 {[%emt 0:01:01]} 1-0

[Event "Icelandic Team-ch Kvika Leagu 2023-24"]
[Site "Reykjavik"]
[Date "2024.03.03"]
[Round "10"]
[White "Donchenko, Alexander"]
[Black "Stefansson, Hannes"]
[Result "1/2-1/2"]
[ECO "A13"]
[WhiteElo "2631"]
[BlackElo "2481"]
[Annotator "RC"]
[PlyCount "56"]
[EventDate "2024.02.29"]
[EventType "team-tourn"]
[EventCountry "ISL"]
[SourceTitle "playchess.com"]
[Source "ChessBase"]
[SourceQuality "1"]
[TimeControl "40/5400+30:900+30"]

1. Nf3 {[%emt 0:00:03]} d5 {[%emt 0:00:49]} 2. e3 {[%emt 0:00:06]} Nf6 {[%emt 0:01:52]} 3. c4 {[%emt 0:00:07]} e6 {[%emt 0:01:25]} 4. Nc3 {[%emt 0:00:10]} Be7 {[%emt 0:06:09]} 5. b3 {[%emt 0:00:24]} O-O {[%emt 0:02:38]} 6. Bb2 {[%emt 0:00:11]} c5 {[%emt 0:01:39]} 7. cxd5 {[%emt 0:00:22]} exd5 {[%emt 0:00:51]} 8. d4 {[%emt 0:00:15]} b6 {[%emt 0:04:31]} 9. Bd3 {[%emt 0:13:19]} Nc6 {[%emt 0:05:21]} 10. dxc5 {[%emt 0:04:45]} bxc5 {[%emt 0:00:19]} 11. O-O {[%emt 0:00:13]} Bg4 {[%emt 0:01:30]} 12. h3 {[%emt 0:01:24]} Bh5 {[%emt 0:02:15]} 13. Rc1 {[%emt 0:06:06]} Rb8 {[%emt 0:16:02]} 14. Be2 {[%emt 0:05:39]} Qd7 {[%emt 0:06:07]} 15. Na4 {[%emt 0:09:12]} Ne4 {[%emt 0:00:33]} 16. Ba3 {[%emt 0:06:11]} Nb4 {[%emt 0:02:17]} 17. Bxb4 {[%emt 0:08:04]} Rxb4 {[%emt 0:04:09]} 18. Ne5 {[%emt 0:00:50]} Qc7 {[%emt 0:01:01]} 19. Nd3 {[%emt 0:01:46]} Bxe2 {[%emt 0:02:20]} 20. Qxe2 {[%emt 0:00:05]} Rbb8 {[%emt 0:00:38]} 21. Naxc5 {[%emt 0:12:39]} Bxc5 {[%emt 0:06:50]} 22. b4 {[%emt 0:00:04]} Rfc8 {[%emt 0:00:51]} 23. Rc2 {[%emt 0:03:13]} Ng3 {[%emt 0:04:16]} 24. Qd1 {[%emt 0:01:35]} Nxf1 {[%emt 0:00:28]} 25. Qxf1 {[%emt 0:00:04]} Qb6 {[%emt 0:03:55]} 26. bxc5 {[%emt 0:05:31]} Qb1 {[%emt 0:03:24]} 27. Qc1 {[%emt 0:00:58]} f6 {[%emt 0:01:57]} 28. Kf1 {[%emt 0:00:19]} Rb5 {[%emt 0:10:29]} 1/2-1/2

[Event "Icelandic Team-ch Kvika Leagu 2023-24"]
[Site "Reykjavik"]
[Date "2024.03.03"]
[Round "10"]
[White "Laurusas, Tomas"]
[Black "Gislason, Gudmundur"]
[Result "1-0"]
[ECO "E92"]
[WhiteElo "2586"]
[BlackElo "2266"]
[Annotator "RC"]
[PlyCount "113"]
[EventDate "2024.02.29"]
[EventType "team-tourn"]
[EventCountry "ISL"]
[SourceTitle "playchess.com"]
[Source "ChessBase"]
[SourceQuality "1"]
[TimeControl "40/5400+30:900+30"]

1. d4 {[%emt 0:00:03]} Nf6 {[%emt 0:00:07]} 2. c4 {[%emt 0:00:24]} g6 {[%emt 0:00:06]} 3. Nc3 {[%emt 0:00:52]} Bg7 {[%emt 0:00:07]} 4. e4 {[%emt 0:00:17]} d6 {[%emt 0:00:04]} 5. Nf3 {[%emt 0:02:34]} O-O {[%emt 0:00:06]} 6. Be2 {[%emt 0:00:18]} e5 {[%emt 0:00:06]} 7. Be3 {[%emt 0:00:09]} Nc6 {[%emt 0:00:20]} 8. d5 {[%emt 0:00:12]} Ne7 {[%emt 0:00:04]} 9. Nd2 {[%emt 0:00:08]} Ne8 {[%emt 0:02:21]} 10. c5 {[%emt 0:00:16]} f5 {[%emt 0:00:08]} 11. f3 {[%emt 0:00:02]} Kh8 {[%emt 0:01:58]} 12. Nc4 {[%emt 0:19:37]} Ng8 {[%emt 0:12:18]} 13. Qd2 {[%emt 0:07:52]} Bd7 {[%emt 0:04:22]} 14. O-O-O {[%emt 0:08:49]} Ngf6 {[%emt 0:13:06]} 15. Kb1 {[%emt 0:09:03]} b5 {[%emt 0:02:54]} 16. c6 {[%emt 0:05:51]} bxc4 {[%emt 0:00:08]} 17. cxd7 {[%emt 0:00:03]} Qxd7 {[%emt 0:00:52]} 18. Bxc4 {[%emt 0:01:21]} Rb8 {[%emt 0:06:23]} 19. Qd3 {[%emt 0:10:33]} fxe4 {[%emt 0:01:16]} 20. fxe4 {[%emt 0:00:03]} c5 {[%emt 0:02:19]} 21. dxc6 {[%emt 0:03:38]} Qxc6 {[%emt 0:00:24]} 22. Bxa7 {[%emt 0:00:20]} Rb4 {[%emt 0:00:21]} 23. Bb3 {[%emt 0:07:18]} Qb7 {[%emt 0:06:19]} 24. Be3 {[%emt 0:02:21]} Nxe4 {[%emt 0:00:19]} 25. Nd5 {[%emt 0:02:05]} Nf2 {[%emt 0:03:01]} 26. Bxf2 {[%emt 0:01:38]} Rxf2 {[%emt 0:01:46]} 27. Qg3 {[%emt 0:11:47]} Rbf4 {[%emt 0:00:48]} 28. Rc1 {[%emt 0:04:31]} e4 {[%emt 0:02:14]} 29. Rc2 {[%emt 0:00:00]} Rxc2 {[%emt 0:01:08]} 30. Kxc2 {[%emt 0:00:01]} Rf5 {[%emt 0:00:39]} 31. Rd1 {[%emt 0:00:01]} Be5 {[%emt 0:19:08]} 32. Qe1 {[%emt 0:00:02]} Nf6 {[%emt 0:00:48]} 33. Ne3 {[%emt 0:00:01]} Rf4 {[%emt 0:01:11]} 34. Kb1 {[%emt 0:00:38]} Ng4 {[%emt 0:05:10]} 35. Nc4 {[%emt 0:03:40]} Nf2 {[%emt 0:05:29]} 36. g3 {[%emt 0:00:36]} Rf3 {[%emt 0:03:32]} 37. Nxe5 {[%emt 0:00:49]} dxe5 {[%emt 0:01:24]} 38. Rd8+ {[%emt 0:01:01]} Kg7 {[%emt 0:00:17]} 39. Rg8+ {[%emt 0:00:27]} Kh6 {[%emt 0:01:34]} 40. Qc1+ {[%emt 0:00:00]} e3 {[%emt 0:00:00]} 41. Rd8 {[%emt 0:04:22]} Qe7 {[%emt 0:06:42]} 42. Rd5 {[%emt 0:02:03]} Qg5 {[%emt 0:01:24]} 43. Bc4 {[%emt 0:02:32]} Ne4 {[%emt 0:01:43]} 44. a3 {[%emt 0:02:25]} Rf2 {[%emt 0:03:06]} 45. Ka2 {[%emt 0:02:14]} Rd2 {[%emt 0:01:40]} 46. Rd3 {[%emt 0:00:39]} Kg7 {[%emt 0:02:07]} 47. Qe1 {[%emt 0:01:49]} Rxd3 {[%emt 0:04:44]} 48. Bxd3 {[%emt 0:00:01]} Nf2 {[%emt 0:00:11]} 49. Be2 {[%emt 0:01:02]} Qd8 {[%emt 0:00:36]} 50. Qc3 {[%emt 0:01:11]} Qd5+ {[%emt 0:00:37]} 51. Kb1 {[%emt 0:00:31]} Qe4+ {[%emt 0:01:40]} 52. Kc1 {[%emt 0:00:12]} h5 {[%emt 0:00:35]} 53. a4 {[%emt 0:00:20]} Ng4 {[%emt 0:00:32]} 54. a5 {[%emt 0:01:17]} Nxh2 {[%emt 0:00:23]} 55. a6 {[%emt 0:00:59]} Nf3 {[%emt 0:02:09]} 56. Qc7+ {[%emt 0:01:06]} Kh6 {[%emt 0:00:00]} 57. Qb7 {[%emt 0:00:13]} 1-0

[Event "Icelandic Team-ch Kvika Leagu 2023-24"]
[Site "Reykjavik"]
[Date "2024.03.03"]
[Round "10"]
[White "Pultinevicius, Paulius"]
[Black "Olsen, Filip Boe"]
[Result "1/2-1/2"]
[ECO "D52"]
[WhiteElo "2575"]
[BlackElo "2456"]
[Annotator "RC"]
[PlyCount "83"]
[EventDate "2024.02.29"]
[EventType "team-tourn"]
[EventCountry "ISL"]
[SourceTitle "playchess.com"]
[Source "ChessBase"]
[SourceQuality "1"]
[TimeControl "40/5400+30:900+30"]

1. d4 {[%emt 0:00:02]} d5 {[%emt 0:00:11]} 2. c4 {[%emt 0:00:04]} e6 {[%emt 0:00:14]} 3. Nf3 {[%emt 0:01:11]} Nf6 {[%emt 0:00:12]} 4. Nc3 {[%emt 0:00:10]} c6 {[%emt 0:00:17]} 5. Bg5 {[%emt 0:00:21]} Nbd7 {[%emt 0:00:17]} 6. e3 {[%emt 0:00:07]} Qa5 {[%emt 0:00:08]} 7. cxd5 {[%emt 0:00:50]} Nxd5 {[%emt 0:00:12]} 8. Rc1 {[%emt 0:00:07]} Nxc3 {[%emt 0:07:06]} 9. bxc3 {[%emt 0:00:05]} Ba3 {[%emt 0:00:29]} 10. Rc2 {[%emt 0:00:06]} b6 {[%emt 0:03:47]} 11. Bd3 {[%emt 0:05:59]} Ba6 {[%emt 0:00:39]} 12. O-O {[%emt 0:00:07]} Bxd3 {[%emt 0:10:34]} 13. Qxd3 {[%emt 0:00:06]} O-O {[%emt 0:00:52]} 14. c4 {[%emt 0:01:13]} h6 {[%emt 0:02:45]} 15. Bh4 {[%emt 0:02:46]} Rfe8 {[%emt 0:03:29]} 16. Rb1 {[%emt 0:08:04]} Be7 {[%emt 0:04:04]} 17. Bg3 {[%emt 0:00:11]} Rad8 {[%emt 0:14:24]} 18. Rd2 {[%emt 0:04:06]} Bf6 {[%emt 0:07:00]} 19. Rbd1 {[%emt 0:02:09]} c5 {[%emt 0:07:37]} 20. Qe2 {[%emt 0:00:24]} cxd4 {[%emt 0:02:45]} 21. exd4 {[%emt 0:00:21]} Rc8 {[%emt 0:01:47]} 22. h3 {[%emt 0:00:27]} Qa4 {[%emt 0:04:19]} 23. Rc1 {[%emt 0:01:50]} b5 {[%emt 0:06:29]} 24. Rdc2 {[%emt 0:08:46]} bxc4 {[%emt 0:00:51]} 25. Rxc4 {[%emt 0:00:06]} Rxc4 {[%emt 0:00:12]} 26. Rxc4 {[%emt 0:00:06]} Qa6 {[%emt 0:01:15]} 27. Qc2 {[%emt 0:00:09]} Nb6 {[%emt 0:00:54]} 28. Rc6 {[%emt 0:02:30]} Rc8 {[%emt 0:02:10]} 29. Be5 {[%emt 0:01:57]} Rxc6 {[%emt 0:04:42]} 30. Qxc6 {[%emt 0:00:11]} Qa4 {[%emt 0:02:35]} 31. Qb7 {[%emt 0:05:08]} Qxa2 {[%emt 0:01:05]} 32. Qb8+ {[%emt 0:00:35]} Kh7 {[%emt 0:00:08]} 33. Bxf6 {[%emt 0:00:03]} gxf6 {[%emt 0:00:27]} 34. Qf8 {[%emt 0:00:10]} Qb1+ {[%emt 0:02:03]} 35. Kh2 {[%emt 0:00:06]} Qg6 {[%emt 0:00:15]} 36. Qb8 {[%emt 0:00:44]} Nd5 {[%emt 0:00:47]} 37. Qxa7 {[%emt 0:00:06]} Kg7 {[%emt 0:00:37]} 38. Qb8 {[%emt 0:02:23]} Qc2 {[%emt 0:00:55]} 39. Qg3+ {[%emt 0:00:10]} Qg6 {[%emt 0:00:08]} 40. Qb8 {[%emt 0:00:00]} Qc2 {[%emt 0:00:00]} 41. Qg3+ {[%emt 0:00:10]} Qg6 {[%emt 0:00:15]} 42. Qb8 {[%emt 0:00:08]} 1/2-1/2

[Event "Icelandic Team-ch Kvika Leagu 2023-24"]
[Site "Reykjavik"]
[Date "2024.03.03"]
[Round "10"]
[White "Urkedal, Frode Olav Olsen"]
[Black "Kjartansson, Gudmundur"]
[Result "1-0"]
[ECO "B10"]
[WhiteElo "2536"]
[BlackElo "2465"]
[Annotator "RC"]
[PlyCount "81"]
[EventDate "2024.02.29"]
[EventType "team-tourn"]
[EventCountry "ISL"]
[SourceTitle "playchess.com"]
[Source "ChessBase"]
[SourceQuality "1"]
[TimeControl "40/5400+30:900+30"]

1. e4 {[%emt 0:00:08]} c6 {[%emt 0:02:49]} 2. Nf3 {[%emt 0:02:00]} d5 {[%emt 0:00:06]} 3. d3 {[%emt 0:00:03]} dxe4 {[%emt 0:00:15]} 4. dxe4 {[%emt 0:00:06]} Qxd1+ {[%emt 0:00:02]} 5. Kxd1 {[%emt 0:00:08]} Bg4 {[%emt 0:03:40]} 6. Be2 {[%emt 0:00:07]} Nd7 {[%emt 0:00:18]} 7. Ne1 {[%emt 0:00:06]} Bxe2+ {[%emt 0:00:05]} 8. Kxe2 {[%emt 0:00:04]} Nc5 {[%emt 0:06:07]} 9. f3 {[%emt 0:02:17]} e5 {[%emt 0:00:17]} 10. Be3 {[%emt 0:00:54]} Nf6 {[%emt 0:04:14]} 11. a4 {[%emt 0:04:03]} Nfd7 {[%emt 0:14:51]} 12. Nd2 {[%emt 0:03:08]} f6 {[%emt 0:04:53]} 13. b4 {[%emt 0:09:14]} Ne6 {[%emt 0:01:14]} 14. Nd3 {[%emt 0:00:44]} Bd6 {[%emt 0:17:42]} 15. g3 {[%emt 0:04:38]} Bc7 {[%emt 0:07:18]} 16. a5 {[%emt 0:08:03]} Ke7 {[%emt 0:00:17]} 17. Nb3 {[%emt 0:07:15]} a6 {[%emt 0:06:03]} 18. Rad1 {[%emt 0:05:43]} Rhd8 {[%emt 0:01:15]} 19. f4 {[%emt 0:06:52]} exf4 {[%emt 0:06:01]} 20. gxf4 {[%emt 0:00:35]} g5 {[%emt 0:00:29]} 21. f5 {[%emt 0:08:21]} Nf4+ {[%emt 0:00:12]} 22. Bxf4 {[%emt 0:00:21]} Bxf4 {[%emt 0:00:48]} 23. h4 {[%emt 0:03:27]} h6 {[%emt 0:02:15]} 24. hxg5 {[%emt 0:01:10]} Bxg5 {[%emt 0:00:06]} 25. Nbc5 {[%emt 0:00:53]} Nxc5 {[%emt 0:01:30]} 26. Nxc5 {[%emt 0:00:12]} Rab8 {[%emt 0:06:10]} 27. c3 {[%emt 0:11:29]} Bf4 {[%emt 0:06:27]} 28. Rxd8 {[%emt 0:04:19]} Rxd8 {[%emt 0:00:04]} 29. Rh3 {[%emt 0:09:55]} Rd2+ {[%emt 0:00:38]} 30. Kf3 {[%emt 0:02:32]} Be5 {[%emt 0:03:28]} 31. Rxh6 {[%emt 0:00:12]} Bxc3 {[%emt 0:00:30]} 32. Rh7+ {[%emt 0:00:05]} Ke8 {[%emt 0:02:19]} 33. Rxb7 {[%emt 0:00:12]} Rd4 {[%emt 0:01:49]} 34. Nxa6 {[%emt 0:00:34]} c5 {[%emt 0:01:48]} 35. Nc7+ {[%emt 0:00:57]} Kd7 {[%emt 0:00:48]} 36. Nb5+ {[%emt 0:01:20]} Kc8 {[%emt 0:00:15]} 37. Rc7+ {[%emt 0:00:07]} Kd8 {[%emt 0:00:20]} 38. Nxd4 {[%emt 0:00:05]} Kxc7 {[%emt 0:00:28]} 39. Nb5+ {[%emt 0:00:06]} Kc6 {[%emt 0:00:06]} 40. Nxc3 {[%emt 0:00:00]} cxb4 {[%emt 0:00:00]} 41. Nd1 {[%emt 0:06:15]} 1-0

[Event "Icelandic Team-ch Kvika Leagu 2023-24"]
[Site "Reykjavik"]
[Date "2024.03.03"]
[Round "10"]
[White "Gretarsson, Hjorvar Steinn"]
[Black "Lomasov, Semyon"]
[Result "1/2-1/2"]
[ECO "D40"]
[WhiteElo "2530"]
[BlackElo "2565"]
[Annotator "ChessBase"]
[PlyCount "23"]
[EventDate "2024.02.29"]
[EventType "team-tourn"]
[EventCountry "ISL"]
[SourceTitle "playchess.com"]
[Source "ChessBase"]
[SourceQuality "1"]
[TimeControl "40/5400+30:900+30"]

1. Nf3 {[%emt 0:09:02]} Nf6 {[%emt 0:00:10]} 2. c4 {[%emt 0:00:12]} c5 {[%emt 0:00:04]} 3. Nc3 {[%emt 0:00:04]} Nc6 {[%emt 0:04:02]} 4. e3 {[%emt 0:03:55]} e6 {[%emt 0:00:00]} 5. d4 {[%emt 0:00:08]} d5 {[%emt 0:00:00]} 6. a3 {[%emt 0:01:05]} a6 {[%emt 0:00:34]} 7. dxc5 {[%emt 0:02:14]} Bxc5 {[%emt 0:00:19]} 8. b4 {[%emt 0:00:28]} Bd6 {[%emt 0:01:08]} 9. Bb2 {[%emt 0:01:25]} O-O {[%emt 0:04:34]} 10. cxd5 {[%emt 0:04:12]} exd5 {[%emt 0:00:40]} 11. Be2 {[%emt 0:00:06]} Bg4 {[%emt 0:04:28]} 12. O-O {[%emt 0:00:33]} 1/2-1/2

[Event "Icelandic Team-ch Kvika Leagu 2023-24"]
[Site "Reykjavik"]
[Date "2024.03.03"]
[Round "10"]
[White "Gretarsson, Helgi Ass"]
[Black "Pakleza, Zbigniew"]
[Result "1/2-1/2"]
[ECO "D15"]
[WhiteElo "2477"]
[BlackElo "2482"]
[Annotator "TA"]
[PlyCount "23"]
[EventDate "2024.02.29"]
[EventType "team-tourn"]
[EventCountry "ISL"]
[SourceTitle "playchess.com"]
[Source "ChessBase"]
[SourceQuality "1"]
[TimeControl "40/5400+30:900+30"]

{[%evp 11,23,29,29,30,21,16,36,27,51,62,58,80,52,0]} 1. d4 {[%emt 0:00:02]} d5 {[%emt 0:00:05]} 2. c4 {[%emt 0:00:04]} c6 {[%emt 0:00:02]} 3. Nc3 {[%emt 0:00:05]} Nf6 {[%emt 0:00:13]} 4. e3 {[%emt 0:00:07]} a6 {[%emt 0:01:11]} 5. Nf3 {[%emt 0:00:06]} b5 {[%emt 0:01:03]} 6. b3 {[%emt 0:00:05][%cal Bb2b3,Bb3c4,Bc4c5][%mdl 32]} Bg4 {[%emt 0:00:20]} 7. a4 {[%emt 0:00:06]} bxc4 {[%emt 0:04:58]} 8. bxc4 {[%emt 0:00:01]} e6 {[%emt 0:00:24]} 9. c5 {[%emt 0:01:54]} Nbd7 {[%emt 0:05:14]} 10. a5 {[%emt 0:05:29]} Be7 {[%emt 0:02:39][%cal Oe6e5]} 11. Qa4 {[%emt 0:12:22]} Qc7 {[%emt 0:05:37] Inhibits Ne5.} 12. Nd2 {[%emt 0:40:13] Weighted Error Value: White=0.00 (flawless) /Black=0.04 (flawless) .  Mistake:       	White=1     	---        OK:         	White=3     	Black=4} ({Better is} 12. Na2 $14) 1/2-1/2